Cogmind - Beta 12 @@@ ROGUE MODE // 2023.11.25 @ 10:54:40 Player: Anonymeme Result: Destroyed by G-47 Trooper with Particle Gun Performance ------------- Evolutions (0) 0 Regions Visited (1) 200 Robots Destroyed (14) 70 Value Destroyed (180) 180 Prototype IDs (0) 0 Alien Tech Used (0) 0 Bonus (0) 0 TOTAL SCORE: 450 Bonus ------- None Cogmind --------- Core Integrity 0/250 Matter 300/300 Energy 100/100 System Corruption 0% Temperature Cool (9) Movement Core (50) Location -10/Materials Parts ------- > --- POWER (1) -------- (None) > --- PROPULSION (2) --- (None) > --- UTILITY (2) ------ (None) > --- WEAPON (2) ------- (None) > --- INVENTORY (5) ---- Ion Engine Compact Wheel Small Storage Unit Structural Scanner Targeting Computer Peak State ------------ > --- POWER ------------ Light Ion Engine > --- PROPULSION ------- Aluminum Leg Aluminum Leg > --- UTILITY ---------- Medium Storage Unit Hacking Suite > --- WEAPON ----------- Medium Laser Small Laser > --- INVENTORY -------- Ion Engine Compact Wheel Hover Unit Small Storage Unit Large Storage Unit Medium Matter Pod Structural Scanner Transport Network Coupler Targeting Computer Light Armor Plating [Rating: 10] Favorites ----------- Power Light Ion Engine Engine Light Ion Engine Propulsion Aluminum Leg Leg Aluminum Leg Utility Large Storage Unit Storage Large Storage Unit Hackware Hacking Suite Protection Light Armor Plating Weapon Small Laser Energy Gun Small Laser Ballistic Gun Assault Rifle Build | -11 -10 ------- Run | Jun Mat Slots Evolved . | . . Power . | . . Propulsion . | . . Utility . | . . Weapon . | . . Parts Attached 13 | 6 7 Power 1 | 1 . Engine 1 | 1 . Core . | . . Reactor . | . . Propulsion 2 | 2 . Treads . | . . Leg 2 | 2 . Wheel . | . . Hover . | . . Flight . | . . Utility 6 | 1 5 Device . | . . Storage 3 | 1 2 Processor . | . . Hackware 1 | . 1 Protection 2 | . 2 Artifact . | . . Weapon 4 | 2 2 Energy Gun 3 | 1 2 Energy Cannon . | . . Ballistic Gun 1 | 1 . Ballistic Cannon . | . . Launcher . | . . Special Weapon . | . . Impact Weapon . | . . Slashing Weapon . | . . Piercing Weapon . | . . Special Melee Weapon . | . . Unidentified Prototypes . | . . Parts Lost 7 | . 7 Power 1 | . 1 Propulsion 2 | . 2 Utility 2 | . 2 Weapon 2 | . 2 Highest Loss Streak 7 | . 7 To Critical Strikes . | . . Average Slot Usage (%) 93 | . 93 Engine 13 | . 13 Leg 26 | . 26 Storage 13 | . 13 Protection 12 | . 12 Energy Gun 20 | . 20 Ballistic Gun 4 | . 4 Naked Turns 10 | . 10 Heaviest Build 27 | 11 27 Greatest Support 20 | 20 20 Greatest Overweight (x) 6 | 1 6 Average Overweight (x) . | . . Largest Inventory Capacity 15 | 8 15 Average Capacity 10 | 6 11 Most Carried 11 | 8 11 Average Carried 8 | 4 9 Final Capacity 8 | 8 5 Final Carried 6 | 6 5 Class Distribution -------------------- 100% | Mutant Dominant Class ---------------- Mutant | -10/Materials Resources | -11 -10 ----------- Run | Jun Mat Matter Collected 465 | 190 275 Remotely . | . . Salvage Created 494 | . 494 Parts 34 | . 34 Haulers Intercepted 1 | . 1 Recyclers Shooed 2 | . 2 Parts Field Recycled . | . . Retrieved Matter . | . . Parts Self-Destructed . | . . Prevented . | . . Kills | -11 -10 ------- Run | Jun Mat Combat Hostiles Destroyed 3 | . 3 Guns 3 | . 3 Classes Destroyed 8 | . 8 Worker 1 | . 1 Builder 2 | . 2 Tunneler 3 | . 3 Hauler 1 | . 1 Recycler 2 | . 2 Operator 1 | . 1 Watcher 1 | . 1 Grunt 3 | . 3 Best Kill Streak 3 | . 3 Combat Bots Only 2 | . 2 Max Kills in Single Turn 1 | . 1 Gunslinging . | . . Exploded . | . . Melee . | . . Uniques/NPCs Destroyed . | . . Combat | -11 -10 -------- Run | Jun Mat Damage Taken 801 | . 801 Core 251 | . 251 Absorbed by Shields . | . . Redirected to Shielding 28 | . 28 Core Remaining (%) 100 | 100 . Volleys Fired 73 | . 73 Largest 2 | . 2 Hottest 90 | . 90 Shots Fired 106 | . 106 Gun 106 | . 106 Cannon . | . . Launcher . | . . Special . | . . Kinetic 27 | . 27 Thermal 79 | . 79 Explosive . | . . Electromagnetic . | . . Robot Hit Streak 9 | . 9 Robot Miss Streak 7 | . 7 Penetration Max . | . . Secondary Targets 1 | . 1 Max Gunslinging Chain 1 | . 1 Shots Hit Robots 64 | . 64 Core Hits 24 | . 24 Critical Kills . | . . Critical Parts Destroyed . | . . Critical Strikes . | . . Melee Attacks . | . . Impact . | . . Slashing . | . . Piercing . | . . Sneak Attacks . | . . Combat Hostiles . | . . Follow-up Attacks . | . . Damage Inflicted 765 | . 765 Guns 754 | . 754 Cannons . | . . Explosions . | . . Melee . | . . Ramming 11 | . 11 Kinetic 228 | . 228 Thermal 526 | . 526 Explosive . | . . Electromagnetic . | . . Impact . | . . Slashing . | . . Piercing . | . . Highest Corruption . | . . Average Corruption . | . . Corruption Purged . | . . Corruption Blocked . | . . Overload Shots . | . . Overflow Damage . | . . Projectiles . | . . Explosions . | . . Melee . | . . Knockbacks . | . . Impact . | . . Kinetic . | . . Secondary . | . . Self-Inflicted Damage . | . . Shots . | . . Rammed 2 | . 2 Targets Rammed 8 | . 8 Kicked 6 | . 6 Crushed . | . . Highest Temperature 318 | . 318 Average Temperature 95 | . 95 Received Heat Transfer 462 | . 462 Effects 5 | . 5 Shutdowns 1 | . 1 Energy Bleed 1 | . 1 Interference 2 | . 2 Matter Decay 1 | . 1 Siege Activations . | . . Robots Corrupted . | . . Combat Hostiles . | . . Parts Fried . | . . Impact Corruptions . | . . Robots Melted . | . . Combat Hostiles . | . . Parts Melted . | . . Heat Transferred 1341 | . 1341 Parts Sabotaged . | . . Parts Stolen . | . . Parts Stripped . | . . Power Chain Reactions . | . . Missiles Intercepted . | . . Alert | -11 -10 ------- Run | Jun Mat Peak Influence 108 | . 108 Initial . | . . Average 35 | . 39 Maximum Alert Level . | . . Low Security (%) 100 | 100 100 Level 1 . | . . Level 2 . | . . Level 3 . | . . Level 4 . | . . Level 5 . | . . High Security . | . . Max Security . | . . Squads Dispatched 1 | . 1 Investigation . | . . Extermination . | . . Reinforcement 1 | . 1 Assault . | . . Garrison . | . . Intercept . | . . Searches Triggered . | . . Construction Impeded . | . . Haulers Reinforced . | . . Active Scanning Responses . | . . Cargo Convoy Interrupts . | . . Stealth | -11 -10 --------- Run | Jun Mat Distress Signals 1 | . 1 Communications Jammed . | . . Distress Signals . | . . Times Spotted 9 | . 9 Peak Tracking Total 3 | . 3 Tactical Retreats . | . . Traps | -11 -10 ------- Run | Jun Mat Traps Triggered . | . . Indirectly . | . . Trap Hack Attempts . | . . Triggered . | . . Disarmed . | . . Reprogrammed . | . . Reused . | . . Traps Extracted . | . . Installed . | . . Triggered . | . . Machines | -11 -10 ---------- Run | Jun Mat Machines Disabled . | . . Max in Single Turn . | . . Machines Repaired . | . . Machines Sabotaged . | . . Overloaded Fab Kills . | . . Hacking | -11 -10 --------- Run | Jun Mat Machines Accessed 1 | . 1 Terminals 1 | . 1 Fabricators . | . . Repair Stations . | . . Recycling Units . | . . Scanalyzers . | . . Garrison Access . | . . Total Hacks 1 | . 1 Successful 1 | . 1 Failed . | . . Catastrophic . | . . Database Lockouts . | . . Manual . | . . Terminals 1 | . 1 Fabricators . | . . Repair Stations . | . . Recycling Units . | . . Scanalyzers . | . . Garrison Access . | . . Terminal Hacks 1 | . 1 Maintenance Status 1 | . 1 Fabricator Hacks . | . . Repair Station Hacks . | . . Recycling Unit Hacks . | . . Scanalyzer . | . . Garrison Access Hacks . | . . Unauthorized Hacks . | . . Terminals . | . . Fabricators . | . . Repair Stations . | . . Recycling Units . | . . Scanalyzers . | . . Garrison Access . | . . Data Cores Recovered . | . . Used . | . . Hacking Detections . | . . Full Trace Events . | . . Feedback Events . | . . Feedback Blocked . | . . Robot Schematics Acquired . | . . Robots Built . | . . Authchips . | . . Time . | . . Total Robot Build Rating . | . . Part Schematics Acquired . | . . Parts Built . | . . Authchips . | . . Time . | . . Total Part Build Rating . | . . Parts Repaired . | . . Time . | . . Parts Recycled . | . . Recycled Matter . | . . Retrieved Matter . | . . Retrieved Components . | . . Parts Scanalyzed . | . . Part Schematics Acquired . | . . Parts Damaged . | . . Bothacking | -11 -10 ------------ Run | Jun Mat Used RIF Installer . | . . Robots Hacked . | . . Non-combat . | . . Combat . | . . Robot Hacks Applied . | . . Relay Couplers Released . | . . Fabnet Peak Effective % . | . . Robots Rewired . | . . Allies Hacked . | . . Hacks Repelled . | . . Allies | -11 -10 -------- Run | Jun Mat Total Allies . | . . Largest Group . | . . Highest-Rated Group . | . . Highest-Rated Ally . | . . Total Orders . | . . Ally Attacks . | . . Total Damage . | . . Kills . | . . Allies Corrupted . | . . Allies Melted . | . . Intel | -11 -10 ------- Run | Jun Mat Robot Analysis Total . | . . Derelict Logs Recovered . | . . Drone Launches . | . . Drone Recoveries . | . . Exploration | -11 -10 ------------- Run | Jun Mat Turns Passed 752 | 68 684 Spaces Moved 364 | 56 308 Core 44 | 40 4 Treads . | . . Legs 320 | 16 304 Wheels . | . . Hover . | . . Flight . | . . Fastest Speed 50 | 50 50 Average Speed 135 | 78 146 Slowest Speed 350 | 120 350 Overloaded Moves . | . . Propulsion Burnouts . | . . Robots Hopped . | . . Cave-ins Triggered . | . . Exploration Rate (%) 21 | 4 39 Regions Visited 1 Branch Regions . Pre-discovered Areas . | . . Known Exits Taken . | . . Unknown Exits Taken 1 | 1 . Scrap Searched . | . . Spaces Dug . | . . Terrain Destroyed . | . . Melee . | . . Projectile . | . . AOE . | . . Terrain Rammed . | . . Walls Destroyed . | . . Machines Disabled . | . . Actions | -11 -10 --------- Run | Jun Mat Total 504 | 78 426 Wait 19 | 9 10 Move 363 | 55 308 Hop . | . . Pick Up 21 | 8 13 Fast Attach 4 | 4 . Attach 5 | 2 3 Detach 1 | . 1 Swap 4 | . 4 Drop 6 | . 6 Fire 73 | . 73 Melee . | . . Ram 2 | . 2 Kick 6 | . 6 Crush . | . . Escape Stasis . | . . Rewire . | . . Trap . | . . Miscellaneous . | . . Route ------- -11/Junkyard -10/Materials (discovered 1 exit: [*Min]) History --------- Turn | Location | Event 12 | -11/Junkyard | Discovered new exit (range 16) 69 | -11/Junkyard | Entered Materials 323 | -10/Materials | Build established: Mutant 464 | -10/Materials | Discovered new exit (range 14) 740 | -10/Materials | Core integrity fell below 50% 750 | -10/Materials | Core integrity fell below 20% 753 | -10/Materials | Destroyed by G-47 Trooper with Particle Gun Last Messages --------------- K-01 Serf collects debris. W-16 Scout destroyed. Switching to secondary target: G-47 Trooper. K-01 Serf collects debris. Med. Laser destroyed. Sml. Laser destroyed. Kicked G-47 Trooper. Kicked G-47 Trooper out of the way. Kicked G-34 Mercenary. Lgt. Ion Engine destroyed. Kicked G-34 Mercenary. Aluminum Leg destroyed. Kicked G-47 Trooper. Kicked G-47 Trooper out of the way. Aluminum Leg destroyed. Slammed into G-47 Trooper. A-02 Transporter destroyed. Slammed into G-47 Trooper. Core Shielding destroyed. Lrg. Storage Unit destroyed. Map ----- +----------------------------------------------------+ | ??????????????????????????????????????????? | | ??????????????????????????????????????????? | | ??????????????????????????????????????????? | | ?????????????????????????????????#####????? | | ????????????????????????????????##"""##???? | | ???????????????????????????????##"|||"##??? | | ???????????????????????????????#"" ""#??? | | ???????????????????????????????# #??? | | ???????????????????????????????# < #??? | | ???????????????????????????????# #??? | | ???????????????????????????????# #??? | | ????????????????????????#####??## ##??? | | ????????????????????????# | ???## ##???? | | ????????????????????????# *%###??# #????? | | ????????????????????????# = #??# ###### | | ????????????????????????# #??# # # | | ????????????????????????# #??# # # | | ??????################### #??# # # | | ??????? ## ####### # # | | ??????? %! =% =+ # | | ??????? * ! # # | | ?????????????###### # # | | ??????????????????# #######+###+## # | | ??????????????????###+###### ## # | | ??????????????????#*%!!!g!## = ####### | | ??????????????????#%%!!!T@## ! #?????? | | ??????????????????#%%%%!g!## #?????? | | ??????????????????#%"""""!## #?????? | | ??????????????????#="""""!## #?????? | | ??????????????????# """""!## [ #?????? | | ??????????????????# """"" ## #?????? | | ??????????????????# """"" ## #?????? | | ???????????#??????# """"" ########+##?????? | | ???????????#!?????# """"" # ### ###????? | | ???????????# ????# # # #????? | | ???????##### ????######### + #????? | | ??????? ??????###### # T #????? | | ?????? ??? ? ## # #????? | | ??????? ??? ? ?# # #????? | | ????????# ?? ? ?# ## ##????? | | ????????# ###+##+#?####### #?????? | | ????????# =%######### #?????? | | ????????# ## # #?????? | | ????????# = ## # #?????? | | ????????# #######% ## # #?????? | | ??????????????????#% [= ## # #?????? | | ??????????????????# != ## + ####### | | ??????????????????#*= *## * # #^ # | | ??????????????????# !==####+#### # ""# | | ??????????????????# == #??# # ""# | +----------------------------------------------------+ Best States ------------- Heat Dissipation 25 Energy Generation 10 Energy Capacity 125 Matter Stores 300 Matter Capacity 300 Sight Range 16 Terrain Scan Density 10 Armor Coverage 150 Core Shielding 20 Evasion (%) 55 Offensive Hacking 10 Item Schematics ----------------- None Robot Schematics ------------------ None Fabricated ------------ Nothing Alien Tech Used ----------------- None Achievements -------------- Loot Pinata Storm Trooper Challenges ------------ None Game ------ Seed TerrainSniperLeg Manual? 0 Play Time 00:22:38 Cumulative 8.2 hours Start 2023.11.25 @ 10:34:49 End 2023.11.25 @ 10:54:40 Sessions 1 Manual Loads 0 Difficulty Rogue Special Mode None Game No. 24 Rogue 24 Adventurer 0 Explorer 0 Win Type - Total 0 Types 0/0/0/0/0/0/0/0/0 Lore% 7 Gallery% 12 Achievement% 1 Wizard Run 0 Options --------- ASCII 0 Keyboard 0 Movement Mouse Keybinds 0 Fullscreen 1 Font 24/Smallcaps Map View 113x50 Tactical HUD 0 Map Filters NONE Filters NONE Steam 1 RUN: 8674d4d1-06d0-4042-a6e7-09ae477fae42